bitfinex-derivatives/quotes_BNBF0:USTF0_20250315
["timestamp","ask_amount","ask_price","bid_price","bid_amount"]
[1742016682792,0.29356808,593.52,592.5,0.814]
[1742016682993,0.30646357,593.51,592.5,0.814]
[1742016683295,0.29356808,593.52,592.5,0.814]
[1742016683594,0.30641333,593.51,592.51,1.927]
[1742016683797,0.30641333,593.51,592.51,3.014]
[1742016685397,0.29356808,593.52,592.51,3.014]
[1742016685398,0.30641257,593.5,592.51,3.014]
[1742016685592,0.30641257,593.49,592.52,0.818]
[1742016685897,0.30641257,593.48,592.52,0.818]
[1742016686100,0.29356931,593.49,592.52,0.818]
[1742016686398,0.30641257,593.48,592.52,0.818]
[1742016689003,0.59998436,593.47,592.52,0.818]
[1742016689301,0.30641257,593.46,592.52,1.857]
[1742016691803,0.29360151,593.45,592.52,1.857]
[1742016692302,0.30641257,593.44,592.52,1.857]
[1742016693101,0.3063873,593.43,592.52,1.857]
[1742016693302,0.3063873,593.44,592.52,1.857]
[1742016694902,2.37474615,594.02,592.52,1.857]
[1742016694903,0.29360399,593.43,592.52,1.857]
[1742016695206,0.3063873,593.42,592.52,1.857]
[1742016698608,0.30637301,593.41,592.52,1.857]
[1742016698906,0.30637301,593.4,592.52,1.857]
[1742016699107,0.30637301,593.42,592.52,1.857]
[1742016699308,0.30637942,593.41,592.52,2.779]
[1742016699502,0.29360399,593.43,592.52,2.779]
[1742016699503,0.30637942,593.42,592.52,2.779]
[1742016700805,10.80538091,593.8,592.52,2.779]
[1742016701006,0.59998589,593.41,592.52,2.779]
[1742016701202,0.30637942,593.4,592.52,2.779]
[1742016701402,0.30637942,593.77,592.52,2.779]
[1742016701605,0.30637942,593.76,592.52,2.779]
[1742016701800,0.30637942,593.75,592.52,2.779]
[1742016702006,2.87996821,593.74,592.52,2.779]
[1742016702202,0.30637942,593.73,592.52,2.779]
[1742016702403,0.30637942,593.72,592.52,2.779]
[1742016702606,0.30637942,593.71,592.52,2.779]
[1742016702906,0.30637942,593.7,592.52,2.779]
[1742016703407,0.30637942,593.69,592.52,2.779]
[1742016703608,0.30637942,593.68,592.52,2.779]
[1742016703909,0.30637942,593.67,592.52,2.779]
[1742016704408,0.30639654,593.66,592.52,2.779]
[1742016704608,0.30639654,593.67,592.52,2.779]
[1742016704811,0.30639654,593.66,592.52,2.779]
[1742016705108,0.29356436,593.68,592.52,2.779]
[1742016705109,0.30639654,593.65,592.52,2.779]
[1742016705308,0.30639654,593.67,592.52,2.779]
[1742016705508,0.30639654,593.66,592.52,2.779]
[1742016705704,0.30639654,593.67,592.52,2.779]
[1742016707110,0.59996462,593.66,592.52,2.779]
[1742016707309,0.30639654,593.65,592.52,2.779]
[1742016708211,0.30639975,593.64,592.52,2.779]
[1742016708406,0.30639975,593.65,592.52,2.779]
[1742016708603,0.30639975,593.64,592.52,2.779]
[1742016708810,0.30639975,593.65,592.52,2.779]
[1742016709010,0.30639975,593.64,592.52,3.89]
[1742016709210,0.30639975,593.65,592.52,3.89]
[1742016709407,0.30639975,593.64,592.52,3.89]
[1742016709611,0.30639975,593.65,592.52,3.89]
[1742016709915,0.29357055,593.63,592.52,3.89]
[1742016710309,0.30639975,593.62,592.52,3.89]
[1742016712013,0.30640635,593.61,592.52,3.89]
[1742016712214,0.30640635,593.62,592.52,3.89]
[1742016712615,2.3828295,594.01,592.52,3.89]
[1742016712812,0.336706,593.99,592.52,3.89]
[1742016713014,0.30640309,593.98,592.52,3.89]
[1742016713214,0.30640309,593.97,592.52,4.923]
[1742016713412,0.30640309,593.96,592.52,4.923]
[1742016713608,0.30640309,593.95,592.52,4.923]
[1742016713809,0.33674001,593.93,592.52,4.923]
[1742016714115,0.30640147,593.92,592.52,5.657]
[1742016714314,0.30640147,593.91,592.52,5.657]
[1742016714514,0.3367627,593.89,592.52,5.657]
[1742016714714,0.30640147,593.88,592.52,5.657]
[1742016714916,0.30640147,593.87,592.52,5.657]
[1742016715110,0.30640147,593.86,592.52,5.657]
[1742016715317,0.30640147,593.85,592.52,5.657]
[1742016715516,0.30640147,593.84,592.52,5.657]
[1742016715718,0.30640147,593.83,592.52,5.657]
[1742016716120,0.30640147,593.82,592.52,6.557]
[1742016716319,0.30640147,593.81,592.52,6.557]
[1742016716519,0.29353217,593.84,592.52,6.557]
[1742016716520,0.30640147,593.8,592.52,6.557]
[1742016716718,0.30640147,593.79,592.52,6.557]
[1742016717020,0.29353217,593.84,592.52,6.557]
[1742016717021,0.33683075,593.77,592.52,6.557]
[1742016717320,0.30640147,593.76,592.52,6.557]
[1742016717516,0.30640147,593.75,592.52,6.557]
[1742016717720,0.30640147,593.76,592.52,6.557]
[1742016717919,0.30640147,593.75,592.52,6.557]
[1742016718120,0.33685345,593.73,592.52,6.557]
[1742016718420,0.30640147,593.72,592.52,6.557]
[1742016718822,0.29355198,593.71,592.52,6.557]
[1742016719120,0.33687614,593.69,592.52,6.557]
[1742016719321,0.30640147,593.68,592.52,6.557]
[1742016719622,0.33688749,593.67,592.52,6.557]
[1742016719924,0.30640147,593.66,592.52,6.557]
[1742016720121,0.33689884,593.65,592.52,6.557]
[1742016720419,0.30640147,593.64,592.52,6.557]
[1742016720620,0.33691019,593.63,592.52,6.557]
[1742016720821,0.30640147,593.62,592.52,6.557]
[1742016721020,0.33692154,593.61,592.52,6.557]
[1742016721223,0.30640147,593.6,592.52,6.557]
[1742016721422,0.33693289,593.59,592.52,6.557]
[1742016721721,0.30640147,593.58,592.52,6.557]
[1742016721919,0.33694425,593.57,592.52,6.557]
[1742016722116,0.30640147,593.56,592.52,6.557]
[1742016722422,0.3369556,593.55,592.52,6.557]
[1742016722623,0.30640147,593.54,592.52,6.557]
[1742016722922,0.33696696,593.53,592.52,6.557]
[1742016723120,0.30640647,593.52,592.52,6.557]
[1742016723316,0.33697831,593.51,592.52,6.557]
[1742016723521,0.30640647,593.5,592.52,6.557]
[1742016723720,0.64339046,593.5,592.52,6.557]
[1742016724023,0.30640647,593.49,592.52,6.557]
[1742016725024,0.59997569,593.48,592.52,6.557]
[1742016725323,0.30639523,593.47,592.52,6.557]
[1742016726723,0.3064013,593.46,592.52,6.557]
[1742016727022,0.3064013,593.45,592.52,6.557]
[1742016727222,0.3064013,593.47,592.52,6.557]
[1742016727825,0.59998424,593.46,592.52,6.557]
[1742016728125,0.3064013,593.45,592.52,6.557]
[1742016736334,0.3064013,593.45,592.52,7.379]
[1742016736936,0.29358541,593.44,592.52,7.379]
[1742016737336,0.3064013,593.43,592.52,7.379]
[1742016739839,0.29360523,593.42,592.52,7.379]
[1742016740037,0.60000653,593.42,592.52,7.379]
[1742016740239,0.3064013,593.41,592.52,7.379]
[1742016743641,0.33704078,593.4,592.52,7.379]
[1742016743840,0.3064013,593.39,592.52,7.379]
[1742016744032,0.33705214,593.38,592.52,7.379]
[1742016744237,0.3064013,593.37,592.52,7.379]
[1742016744741,0.3370635,593.36,592.52,7.379]
[1742016744943,0.3064013,593.35,592.52,7.379]
[1742016745242,0.64347048,593.35,592.52,7.379]
[1742016745445,0.3064013,593.34,592.52,7.379]
[1742016745943,0.60003749,593.34,592.52,7.379]
[1742016746151,0.3064013,593.33,592.52,7.379]
[1742016748845,0.29363743,593.32,592.52,7.379]
[1742016749038,0.3064013,593.31,592.52,7.379]
[1742016750848,0.29363743,593.32,592.52,7.379]
[1742016751250,0.30630025,593.31,592.52,7.379]
[1742016751749,0.33706918,593.35,592.52,7.379]
[1742016751947,0.30630258,593.34,592.52,7.379]
[1742016752148,0.29363991,593.3,592.52,7.379]
[1742016754652,0.33706918,593.35,592.52,7.379]
[1742016754846,0.29363619,593.29,592.52,7.379]
[1742016757749,0.33706918,593.35,592.52,7.379]
[1742016757955,0.29363619,593.28,592.52,7.379]
[1742016758149,0.33706918,593.35,592.52,7.379]
[1742016759454,0.2934938,593.34,592.52,7.379]
[1742016760752,0.33706918,593.35,592.52,7.379]
[1742016764050,0.29358789,593.34,592.52,7.379]
[1742016766650,0.33706918,593.35,592.52,7.379]
[1742016767049,0.29358913,593.33,592.52,7.379]
[1742016772657,0.33706918,593.35,592.52,7.379]
[1742016773063,0.29358913,593.32,592.52,7.379]
[1742016775765,0.33706918,593.35,592.52,7.379]
[1742016775962,0.29358913,593.31,592.52,7.379]
[1742016778771,0.33706918,593.35,592.52,7.379]
[1742016779072,0.29358913,593.31,592.52,7.379]
[1742016781568,0.33706918,593.35,592.52,7.379]
[1742016790671,2.57358879,594.3,592.52,7.379]
[1742016790972,0.29354703,593.45,592.52,7.379]
[1742016791176,2.57358879,594.25,592.52,7.379]
[1742016791477,0.33657001,594.23,592.52,7.379]
[1742016791672,0.30647609,594.22,592.52,7.379]
[1742016791877,0.336587,594.2,592.52,7.379]
[1742016792078,0.30647609,594.19,592.52,7.379]
[1742016792278,0.336604,594.17,592.52,7.379]
[1742016792473,0.30648166,594.16,592.52,7.379]
[1742016792779,0.33662099,594.14,592.52,7.379]
[1742016792985,0.30648166,594.13,592.52,7.379]
[1742016793176,0.30648166,594.12,592.52,7.379]
[1742016793376,0.30648166,594.11,592.52,7.379]
[1742016793576,0.30648166,594.13,592.52,7.379]
[1742016793775,0.30648166,594.12,592.52,7.379]
[1742016793973,0.33662099,594.14,592.52,7.379]
[1742016794175,0.33664366,594.1,592.52,7.379]
[1742016794378,0.30650296,594.09,592.52,7.379]
[1742016794579,0.33666066,594.07,592.52,7.379]
[1742016794779,0.30650296,594.06,592.52,7.379]
[1742016795074,0.33667766,594.04,592.52,7.379]
[1742016795278,0.30650296,594.03,592.52,7.379]
[1742016795477,0.33669466,594.01,592.52,7.379]
[1742016795681,0.30650296,594.0,592.52,7.379]
[1742016795878,0.33671167,593.98,592.52,7.379]
[1742016796078,0.306507,593.97,592.52,7.379]
[1742016796281,0.33672868,593.95,592.52,7.379]
[1742016796678,0.306507,593.94,592.52,7.379]
[1742016796875,0.33674001,593.93,592.52,7.379]
[1742016797080,0.306507,593.92,592.52,7.379]
[1742016797480,0.33675135,593.91,592.52,7.379]
[1742016797674,0.306507,593.9,592.52,7.379]
[1742016797874,0.3367627,593.89,592.52,7.379]
[1742016798180,0.306507,593.88,592.52,7.379]
[1742016798681,0.33677404,593.87,592.53,0.309816]
[1742016798979,0.306507,593.86,592.37,0.29346039]
[1742016799178,0.33678538,593.85,592.38,0.64743929]
[1742016799380,0.306507,593.84,592.39,0.64743359]
[1742016799682,0.33679672,593.83,592.4,0.64742789]
[1742016799981,0.30636707,593.82,592.41,0.64742147]
[1742016800279,0.33680806,593.81,592.42,0.64741577]
[1742016800480,0.30636707,593.8,592.43,0.64741007]
[1742016800679,0.33681941,593.79,592.44,0.64740437]
[1742016800881,0.30636707,593.78,592.45,0.64739868]
[1742016801078,0.33683075,593.77,592.46,0.30981745]
[1742016801277,0.30636707,593.76,592.46,0.30981745]
[1742016801478,0.3368421,593.75,592.47,0.922]
[1742016801674,0.3368421,593.75,592.48,0.3098153]
[1742016801675,0.30640776,593.74,592.48,0.3098153]
[1742016801878,0.30640776,593.74,592.49,0.875]
[1742016802078,0.30640776,593.74,592.5,0.3098153]
[1742016802482,0.30640776,593.74,592.51,2.01254704]
[1742016802682,0.30640776,593.74,592.52,0.64735664]
[1742016802881,0.30640776,593.74,592.53,0.64735095]
[1742016803084,0.29346286,593.73,592.54,0.64734525]
[1742016803280,0.30640776,593.72,592.55,0.64733955]
[1742016803480,0.30640776,593.72,592.56,0.3098153]
[1742016804181,0.30640776,593.72,592.55,0.33752425]
[1742016804182,0.30640768,593.71,592.57,0.30978113]
[1742016804383,0.30640768,593.72,592.56,0.30978113]
[1742016804584,0.30640768,593.71,592.57,0.30978113]
[1742016804785,0.30640768,593.72,592.56,0.30978113]
[1742016804980,0.30640768,593.71,592.57,0.30978113]
[1742016805179,0.30640768,593.71,592.56,0.30978113]
[1742016805381,0.30640768,593.7,592.56,0.30978113]
[1742016805578,0.30640768,593.72,592.56,0.30978113]
[1742016805782,0.30640768,593.71,592.56,0.30978113]
[1742016806087,0.29346162,593.69,592.56,0.30978113]
[1742016806288,0.30640768,593.68,592.56,0.30978113]
[1742016808190,0.30640768,593.68,592.56,0.64729969]
[1742016808390,0.29346162,593.69,592.57,0.30978113]
[1742016808682,0.3368421,593.75,592.58,0.33750717]
[1742016808887,0.29344059,593.69,592.59,0.30978113]
[1742016809084,0.29344059,593.69,592.6,0.33749578]
[1742016809286,0.29344059,593.69,592.61,0.30978113]
[1742016809486,0.29344059,593.69,592.62,0.33748439]
[1742016809687,0.29344059,593.69,592.63,0.30978113]
[1742016810990,0.29344059,593.69,592.64,0.30973278]
[1742016811185,0.29344059,593.69,592.63,0.30973278]
[1742016811786,0.3368421,593.75,592.63,0.30973278]
[1742016811987,0.29343317,593.69,592.63,0.30973278]
[1742016813986,0.3063953,593.68,592.63,0.30973278]
[1742016814793,0.3063953,593.67,592.63,0.30973278]
[1742016814987,0.29343317,593.69,592.63,0.30973278]
[1742016815189,0.30638833,593.68,592.63,0.30973278]
[1742016816295,0.29343317,593.69,592.63,0.30973278]
[1742016818197,0.29343317,593.69,592.64,0.699]
[1742016819701,0.30624955,593.68,592.64,0.699]
[1742016820395,0.29343317,593.69,592.64,0.699]
[1742016820594,0.30623501,593.68,592.64,0.699]
[1742016821000,0.29346781,593.68,592.64,0.699]
[1742016821200,0.30623501,593.67,592.64,0.699]
[1742016822501,0.30622807,593.66,592.64,0.699]
[1742016822695,0.29346781,593.68,592.64,0.699]
[1742016822696,0.30622807,593.67,592.64,0.699]
[1742016822898,0.30622807,593.66,592.64,0.699]
[1742016823101,0.30622807,593.67,592.64,0.699]
[1742016823401,0.30622807,593.66,592.64,0.699]
[1742016823601,0.29346781,593.68,592.64,0.699]
[1742016823602,0.30622807,593.67,592.64,0.699]
[1742016823803,0.30622807,593.66,592.64,0.699]
[1742016824002,0.30622807,593.67,592.64,0.699]
[1742016824198,0.30622807,593.66,592.64,0.699]
[1742016824403,0.30622807,593.65,592.64,0.699]
[1742016824705,0.30622807,593.64,592.64,0.699]
[1742016824906,0.30622807,593.63,592.64,0.699]
[1742016825202,0.30622807,593.62,592.65,1.923]
[1742016825405,0.30622807,593.67,592.65,2.865]
[1742016825600,0.29346781,593.68,592.65,2.865]
[1742016825801,0.30611331,593.67,592.65,2.865]
[1742016826102,0.30611331,593.67,592.65,5.08]
[1742016826904,0.29347524,593.66,592.65,5.08]
[1742016827300,0.30611331,593.65,592.65,5.08]
[1742016829905,0.29347524,593.66,592.65,5.08]
[1742016830105,0.30610894,593.65,592.65,5.08]
[1742016831908,0.30611081,593.64,592.65,5.08]
[1742016832106,0.30611081,593.65,592.65,5.08]
[1742016832302,0.30611081,593.64,592.65,5.08]
[1742016832708,0.30611081,593.63,592.65,5.08]
[1742016832909,0.30611081,593.74,592.65,5.08]
[1742016833110,0.29347771,593.63,592.65,5.08]
[1742016833310,0.30611081,593.62,592.65,6.146]
[1742016833507,0.30611081,593.74,592.65,6.146]
[1742016833711,0.30598557,593.73,592.65,6.146]
[1742016834011,0.3368421,593.75,592.65,6.146]
[1742016834012,0.30598557,593.72,592.65,6.146]
[1742016834207,0.30598557,593.74,592.65,6.146]
[1742016834512,0.30598557,593.73,592.65,6.146]
[1742016834707,0.30598557,593.72,592.65,6.923]
[1742016834909,0.29347276,593.72,592.65,6.923]
[1742016835110,0.30598557,593.71,592.65,6.923]
[1742016835708,0.30596608,593.7,592.65,6.923]
[1742016835909,0.29347524,593.7,592.65,8.128]
[1742016836108,0.30596608,593.69,592.65,8.128]
[1742016839012,0.30596608,593.68,592.65,8.128]
[1742016839209,0.30596608,593.67,592.65,8.128]
[1742016839419,0.3059728,593.66,592.65,8.128]
[1742016841116,0.30596726,593.65,592.65,8.128]
[1742016841311,0.30596726,593.66,592.65,8.128]
[1742016842015,0.30596726,593.65,592.65,8.128]
[1742016842213,0.29347152,593.65,592.65,8.128]
[1742016842414,0.30596726,593.64,592.65,8.128]
[1742016843718,0.29347152,593.65,592.65,8.128]
[1742016844611,0.3368421,593.75,592.65,8.128]
[1742016845012,0.29347152,593.64,592.65,8.128]
[1742016845215,0.3368421,593.75,592.65,8.128]
[1742016849223,0.29334289,593.74,592.65,8.128]
[1742016850719,0.3368421,593.75,592.65,8.128]
[1742016851120,0.29347152,593.73,592.65,8.128]
[1742016853621,0.30600029,593.72,592.65,8.128]
[1742016853823,0.29347152,593.72,592.65,8.128]
[1742016854023,0.30599328,593.71,592.65,8.128]
[1742016855824,0.30602221,593.7,592.65,8.128]
[1742016856122,0.30602221,593.69,592.65,8.128]
[1742016856323,0.30602221,593.71,592.65,8.128]
[1742016856516,0.30602221,593.7,592.65,8.128]
[1742016856721,0.30602221,593.71,592.65,8.128]
[1742016856923,0.59949745,593.7,592.65,8.128]
[1742016857122,0.30602221,593.69,592.65,8.128]
[1742016857926,0.30603825,593.68,592.65,8.128]
[1742016858121,0.30603825,593.69,592.65,8.128]
[1742016859926,0.29347771,593.68,592.65,8.128]
[1742016860121,0.30603825,593.67,592.65,8.128]
[1742016861523,0.29347771,593.68,592.65,8.128]
[1742016861725,0.30603078,593.67,592.65,8.128]
[1742016863423,0.30600541,593.66,592.65,8.128]
[1742016863622,0.30600541,593.67,592.65,8.128]
[1742016863822,0.30600541,593.66,592.65,8.128]
[1742016864020,0.29347771,593.68,592.65,8.128]
[1742016865831,0.3368421,593.75,592.65,8.128]
[1742016866024,0.29347152,593.67,592.65,8.128]
[1742016866224,0.30600999,593.66,592.65,8.128]
[1742016866425,0.30600999,593.74,592.65,8.128]
[1742016867928,0.29347152,593.73,592.65,8.128]
[1742016868129,0.30600999,593.72,592.65,8.128]
[1742016868922,0.59948399,593.71,592.65,8.128]
[1742016869126,0.293474,593.71,592.65,8.128]
[1742016869328,0.30600249,593.7,592.65,8.128]
[1742016871931,0.30600249,593.74,592.65,8.128]
[1742016873935,0.29347152,593.73,592.65,8.128]
[1742016874133,0.30600249,593.72,592.65,8.128]
[1742016875130,0.59947649,593.71,592.65,8.128]
[1742016875431,0.30600249,593.7,592.65,8.128]
[1742016876935,0.30596653,593.69,592.65,8.128]
[1742016877132,0.30596653,593.7,592.65,8.128]
[1742016877331,0.30596653,593.69,592.65,8.128]
[1742016877532,0.30596653,593.68,592.65,8.128]
[1742016877830,0.30596653,593.67,592.65,8.128]
[1742016878131,0.30596653,593.66,592.65,8.128]
[1742016881036,0.29348142,593.65,592.65,8.128]
[1742016881236,0.30596653,593.64,592.65,8.128]
[1742016884040,0.59945043,593.63,592.65,8.128]
[1742016884339,0.30596653,593.62,592.65,8.128]
[1742016888152,0.2934839,593.63,592.65,8.128]
[1742016889750,0.3368421,593.75,592.65,8.128]
[1742016889950,0.29343935,593.65,592.65,8.128]
[1742016890146,0.3368421,593.75,592.65,8.128]
[1742016892059,0.2933466,593.74,592.65,8.128]
[1742016892859,0.3368421,593.75,592.65,8.128]
[1742016893054,0.29343935,593.73,592.65,8.128]
[1742016895756,0.3368421,593.75,592.65,8.128]
[1742016896157,0.29343935,593.72,592.65,8.128]
[1742016898956,0.30593294,593.71,592.65,8.4654673]
[1742016899154,0.29342203,593.72,592.66,0.30974671]
[1742016899554,0.29342203,593.72,592.66,0.64720832]
[1742016899759,0.29342203,593.72,592.67,0.33745591]
[1742016899959,0.30595853,593.71,592.68,0.30974414]
[1742016900159,0.29342203,593.72,592.69,0.33744453]
[1742016900359,0.30595595,593.71,592.7,0.30974414]
[1742016900559,0.30595595,593.71,592.7,0.64718297]
[1742016900759,0.30595595,593.71,592.71,0.30974414]
[1742016901760,0.30595595,593.71,592.72,0.969]
[1742016902355,0.29342203,593.72,592.73,1.163]
[1742016902554,0.29342203,593.72,592.73,2.978]
[1742016902758,0.29342203,593.72,592.74,0.30971894]
[1742016902955,0.29342203,593.72,592.74,2.075]
[1742016903159,0.29342203,593.72,592.75,1.153]
[1742016903459,0.29342203,593.72,592.75,1.872]
[1742016904760,0.3368421,593.75,592.75,1.872]
[1742016905261,0.3368421,593.75,592.76,0.30970645]
[1742016905460,0.3368421,593.75,592.75,1.872]
[1742016905661,0.3368421,593.75,592.76,0.30970669]
[1742016906761,0.3368421,593.75,592.75,1.872]
[1742016906961,0.3368421,593.75,592.76,0.30969394]
[1742016907760,2.38936552,594.33,592.76,0.30969394]
[1742016907963,0.3365247,594.31,592.76,0.64709862]
[1742016908156,0.30607674,594.3,592.77,0.30969394]
[1742016908360,0.33654169,594.28,592.77,0.30969394]
[1742016908555,0.33654169,594.28,592.76,0.33740468]
[1742016908761,0.30607838,594.27,592.77,0.30968981]
[1742016908963,0.33655868,594.25,592.77,0.30968981]
[1742016909161,0.30607838,594.24,592.77,0.30968981]
[1742016909356,0.64264839,594.23,592.77,0.30968981]
[1742016909560,0.64265405,594.22,592.77,0.30968981]
[1742016909862,0.64265972,594.21,592.77,0.30968981]
[1742016910157,0.64266538,594.2,592.77,0.30968981]
[1742016910363,0.64267105,594.19,592.77,0.30968981]
[1742016910557,0.64267671,594.18,592.77,0.30968981]
[1742016910758,0.64268238,594.17,592.77,0.30968981]
[1742016910961,0.30607838,594.16,592.77,0.30968981]
[1742016911164,0.30607838,594.15,592.77,0.30968981]
[1742016911360,0.30607838,594.14,592.77,0.30968981]
[1742016911565,0.64270504,594.13,592.77,0.30968981]
[1742016911863,0.64271071,594.12,592.77,0.30968981]
[1742016912059,0.64271637,594.11,592.77,0.30968981]
[1742016912264,0.64272204,594.1,592.77,0.30968981]
[1742016912458,0.6427277,594.09,592.77,0.30968981]
[1742016912663,0.64287148,594.08,592.76,0.33740468]
[1742016912865,0.29332805,594.17,592.76,0.33740468]
[1742016912866,0.64287715,594.07,592.76,0.33740468]
[1742016913059,0.64288282,594.06,592.76,0.33740468]
[1742016913262,0.30621649,594.05,592.76,0.33740468]
[1742016914066,0.29334412,594.04,592.76,0.33740468]
[1742016914265,0.30621649,594.03,592.76,0.33740468]
[1742016914459,0.29334412,594.04,592.76,0.33740468]
[1742016914657,0.30619709,594.03,592.76,0.33740468]
[1742016916363,0.3062285,594.02,592.76,0.33740468]
[1742016916564,0.3062285,594.01,592.76,0.33740468]
[1742016916764,0.3062285,594.03,592.76,0.33740468]
[1742016916965,0.3062285,594.02,592.76,0.33740468]
[1742016917265,0.2933466,594.0,592.76,0.33740468]
[1742016917465,0.3062285,593.99,592.76,0.33740468]
[1742016920066,0.3062285,594.05,592.76,0.33740468]
[1742016920261,0.29335154,593.98,592.76,0.33740468]
[1742016920463,0.3062285,593.97,592.76,0.33740468]
[1742016920665,0.3062285,594.03,592.76,0.33740468]
[1742016920969,0.6429175,594.02,592.76,0.33740468]
[1742016921170,3.42731978,594.37,592.76,0.33740468]
[1742016921171,0.64292316,594.01,592.76,0.33740468]
[1742016921371,0.3062285,594.0,592.76,0.33740468]
[1742016921965,0.29336267,593.99,592.76,0.33740468]
[1742016922163,0.3062285,593.98,592.77,1.04]
[1742016922668,0.3062285,593.98,592.77,2.008]
[1742016922869,0.3062285,594.0,592.77,2.008]
[1742016923063,0.29337998,593.97,592.77,2.008]
[1742016923267,0.64295151,593.96,592.77,2.008]
[1742016923468,0.64295718,593.95,592.77,2.008]
[1742016923669,0.3062285,593.94,592.77,2.008]
[1742016923870,0.64296285,593.94,592.77,2.008]
[1742016924070,0.3062285,593.93,592.77,2.008]
[1742016924263,0.64296851,593.93,592.77,2.008]
[1742016924468,0.3062285,593.92,592.77,2.008]
[1742016924770,0.3062285,593.92,592.77,2.914]
[1742016925969,0.59957974,593.91,592.77,2.914]
[1742016926170,0.30618986,593.9,592.77,2.914]
[1742016926366,0.30618986,593.9,592.77,3.835]
[1742016927773,0.29338988,593.91,592.77,3.835]
[1742016927973,0.30617583,593.9,592.77,3.835]
[1742016928969,0.30617583,593.92,592.77,3.835]
[1742016929174,0.29339235,593.89,592.77,3.835]
[1742016929374,0.30617583,593.88,592.77,3.835]
[1742016930471,0.30617583,593.88,592.77,4.765]
[1742016930869,0.30617583,593.88,592.77,5.466]
[1742016931271,0.29339235,593.89,592.77,5.466]
[1742016931470,0.30618344,593.88,592.77,5.466]
[1742016931876,0.30618344,593.92,592.77,5.466]
[1742016932078,0.29338988,593.87,592.77,5.466]
[1742016932278,0.30618344,593.86,592.77,5.466]
[1742016933379,0.3061909,593.85,592.77,5.466]
[1742016933678,0.3061909,593.84,592.77,5.466]
[1742016933874,0.3061909,593.83,592.77,5.466]
[1742016934078,0.3061909,593.86,592.77,5.466]
[1742016934273,0.3061909,593.85,592.77,5.466]
[1742016934473,0.3061909,593.86,592.77,5.466]
[1742016934779,0.3061909,593.85,592.77,5.466]
[1742016934982,0.3061909,593.84,592.77,6.218]
[1742016935181,0.3061909,593.83,592.77,6.218]
[1742016935380,0.3061909,593.82,592.77,6.218]
[1742016935580,0.3061909,593.81,592.77,6.218]
[1742016935883,0.2933973,593.85,592.77,6.218]
[1742016936081,0.30614756,593.84,592.77,6.218]
[1742016938681,0.2933973,593.85,592.77,6.218]
[1742016938874,0.30615142,593.84,592.77,6.218]
[1742016940684,0.2933973,593.85,592.77,6.218]
[1742016940985,0.33674001,593.93,592.77,6.218]
[1742016941182,0.29338988,593.84,592.77,6.218]
[1742016941484,0.33674001,593.93,592.77,6.218]
[1742016941683,0.3061667,593.92,592.77,6.218]
[1742016943084,0.29338988,593.91,592.77,6.218]
[1742016943284,0.3061667,593.9,592.77,6.218]
[1742016943985,0.59955905,593.89,592.77,6.218]
[1742016944182,0.3061667,593.88,592.77,6.218]
[1742016944381,0.29339235,593.89,592.77,6.218]
[1742016944581,0.30615481,593.88,592.77,6.218]
[1742016946984,0.59948531,593.87,592.77,6.218]
[1742016947190,0.30609049,593.86,592.77,6.218]
[1742016948791,0.29339482,593.87,592.77,6.218]
[1742016948991,0.30609363,593.86,592.77,6.218]
[1742016950090,0.2933973,593.85,592.77,6.218]
[1742016950392,0.30609363,593.84,592.77,6.218]
[1742016952985,0.30609363,593.83,592.77,6.218]
[1742016953189,0.29338988,593.83,592.77,6.218]
[1742016955791,0.33674001,593.93,592.77,6.218]
[1742016955993,0.29338988,593.82,592.77,6.218]
[1742016956294,0.3060939,593.81,592.77,6.218]
[1742016956592,0.33674001,593.93,592.77,6.218]
[1742016956792,0.30609873,593.92,592.77,7.304]
[1742016957693,0.33674001,593.93,592.77,7.304]
[1742016957889,0.30610101,593.92,592.77,7.304]